[Event "Turkish-ch Youth U17 2024"]
[Site "Belek Antalya"]
[Date "2024.01.27"]
[Round "9"]
[White "Dirican, Feride"]
[Black "Buyuk, Ecrin Efsa"]
[Result "1-0"]
[ECO "B11"]
[WhiteElo "1492"]
[BlackElo "1976"]
[Annotator "NA RC"]
[PlyCount "139"]
[EventDate "2024.01.21"]
[EventType "swiss"]
[EventCountry "TUR"]
[SourceTitle "playchess.com"]
[Source "ChessBase"]
[SourceQuality "1"]
[TimeControl "5400+30"]

1. e4 {[%emt 0:02:00]} c6 {[%emt 0:01:00]} 2. Nc3 {[%emt 0:00:30]} d5 {[%emt 0:00:30]} 3. Nf3 {[%emt 0:00:30]} Bg4 {[%emt 0:00:30]} 4. h3 {[%emt 0:00:00]} Bxf3 {[%emt 0:00:00]} 5. Qxf3 {[%emt 0:00:00]} Nf6 {[%emt 0:00:00]} 6. g3 {[%emt 0:01:30]} e6 {[%emt 0:00:00]} 7. Bg2 {[%emt 0:00:30]} Nbd7 {[%emt 0:00:00]} 8. d3 {[%emt 0:01:30]} d4 {[%emt 0:05:30]} 9. Nb1 {[%emt 0:07:30]} Be7 {[%emt 0:04:30]} 10. O-O {[%emt 0:00:00]} O-O {[%emt 0:01:30]} 11. Qe2 {[%emt 0:01:00]} e5 {[%emt 0:05:30]} 12. f4 {[%emt 0:04:30]} b5 {[%emt 0:01:30]} 13. f5 {[%emt 0:00:30]} c5 {[%emt 0:08:30]} 14. Nd2 {[%emt 0:01:30]} Rc8 {[%emt 0:02:30]} 15. Nf3 {[%emt 0:07:30]} c4 {[%emt 0:14:30]} 16. g4 {[%emt 0:01:30]} h6 {[%emt 0:00:30]} 17. Kh2 {[%emt 0:08:30]} cxd3 {[%emt 0:07:30]} 18. cxd3 {[%emt 0:00:30]} Qc7 {[%emt 0:00:30]} 19. Rf2 {[%emt 0:08:30]} Qa5 {[%emt 0:05:30]} 20. g5 {[%emt 0:01:30]} hxg5 {[%emt 0:00:00]} 21. Bxg5 {[%emt 0:01:30]} Rc5 {[%emt 0:07:00]} 22. Rg1 {[%emt 0:10:30]} Rfc8 {[%emt 0:01:30]} 23. Bf1 {[%emt 0:06:30]} Qxa2 {[%emt 0:02:30]} 24. Rfg2 {[%emt 0:00:30]} Qa6 {[%emt 0:06:30]} 25. Bh6 {[%emt 0:10:30]} Ng4+ {[%emt 0:14:53]} 26. Rxg4 {[%emt 0:01:30]} Qxh6 {[%emt 0:00:04]} 27. Rxg7+ {[%emt 0:00:30]} Kh8 {[%emt 0:03:20]} 28. Qg2 {[%emt 0:11:43]} Nf6 {[%emt 0:00:30]} 29. Kh1 {[%emt 0:06:56]} Nh5 {[%emt 0:08:06]} 30. Rxf7 {[%emt 0:02:44]} Nf4 {[%emt 0:00:17]} 31. Qg4 {[%emt 0:02:15]} Bf6 {[%emt 0:00:30]} 32. Rxa7 {[%emt 0:00:30]} Rc1 {[%emt 0:00:30]} 33. Rf7 {[%emt 0:00:30]} Rxf1 {[%emt 0:00:30]} 34. Rxf1 {[%emt 0:00:30]} Rg8 {[%emt 0:00:00]} 35. Rxf6 {[%emt 0:01:19]} Qxf6 {[%emt 0:00:13]} 36. Qh4+ {[%emt 0:00:30]} Qxh4 {[%emt 0:00:30]} 37. Nxh4 {[%emt 0:00:30]} Nxd3 {[%emt 0:00:30]} 38. Ng6+ {[%emt 0:00:30]} Kh7 {[%emt 0:00:30]} 39. Rf3 {[%emt 0:00:30]} Nc5 {[%emt 0:00:30]} 40. Nxe5 {[%emt 0:00:30]} Nxe4 {[%emt 0:00:30]} 41. f6 {[%emt 0:00:30]} Rf8 {[%emt 0:00:30]} 42. f7 {[%emt 0:00:30]} Kg7 {[%emt 0:00:30]} 43. Rf4 {[%emt 0:00:30]} Ng5 {[%emt 0:00:30]} 44. h4 {[%emt 0:00:18]} Nxf7 {[%emt 0:00:00]} 45. Nxf7 {[%emt 0:01:10]} d3 {[%emt 0:00:00]} 46. Kg2 {[%emt 0:00:02]} d2 {[%emt 0:00:55]} 47. Rd4 {[%emt 0:00:30]} Rxf7 {[%emt 0:00:30]} 48. Rxd2 {[%emt 0:00:30]} Rf4 {[%emt 0:00:30]} 49. Kg3 {[%emt 0:00:30]} Rb4 {[%emt 0:00:30]} 50. Rh2 {[%emt 0:00:30]} Kg6 {[%emt 0:00:30]} 51. h5+ {[%emt 0:00:03]} Kf5 {[%emt 0:01:14]} 52. h6 {[%emt 0:01:07]} Rb3+ {[%emt 0:00:30]} 53. Kh4 {[%emt 0:00:00]} Kg6 {[%emt 0:00:17]} 54. Kg4 {[%emt 0:00:34]} Rb4+ {[%emt 0:00:00]} 55. Kf3 {[%emt 0:00:39]} Kh7 {[%emt 0:00:00]} 56. Ke3 {[%emt 0:00:30]} Rg4 {[%emt 0:00:22]} 57. Kd3 {[%emt 0:00:00]} Rb4 {[%emt 0:01:33]} 58. Kc3 {[%emt 0:00:00]} Rg4 {[%emt 0:00:50]} 59. Rh5 {[%emt 0:00:23]} b4+ {[%emt 0:01:22]} 60. Kb3 {[%emt 0:00:35]} Rf4 {[%emt 0:00:04]} 61. Ka4 {[%emt 0:01:18]} Rg4 {[%emt 0:00:24]} 62. b3 {[%emt 0:00:17]} Rf4 {[%emt 0:00:05]} 63. Rb5 {[%emt 0:00:35]} Kxh6 {[%emt 0:00:30]} 64. Rxb4 {[%emt 0:00:02]} Rf1 {[%emt 0:00:10]} 65. Rg4 {[%emt 0:00:25]} Ra1+ {[%emt 0:00:15]} 66. Kb5 {[%emt 0:00:30]} Rb1 {[%emt 0:00:30]} 67. b4 {[%emt 0:00:00]} Rf1 {[%emt 0:00:03]} 68. Ka5 {[%emt 0:00:00]} Ra1+ {[%emt 0:00:39]} 69. Kb6 {[%emt 0:00:27]} Rb1 {[%emt 0:00:30]} 70. b5 {[%emt 0:00:00]} 1-0

[Event "Turkish-ch Youth U17 2024"]
[Site "Belek Antalya"]
[Date "2024.01.27"]
[Round "9"]
[White "Akin, Duru"]
[Black "Camci, Ecrin"]
[Result "0-1"]
[ECO "B76"]
[WhiteElo "1474"]
[BlackElo "1082"]
[Annotator "NA RC COMBH"]
[PlyCount "82"]
[EventDate "2024.01.21"]
[EventType "swiss"]
[EventCountry "TUR"]
[SourceTitle "playchess.com"]
[Source "ChessBase"]
[SourceQuality "1"]
[TimeControl "5400+30"]

1. e4 {[%emt 0:01:00]} c5 {[%emt 0:01:00]} 2. Nf3 {[%emt 0:00:30]} d6 {[%emt 0:00:30]} 3. d4 {[%emt 0:00:30]} cxd4 {[%emt 0:00:30]} 4. Nxd4 {[%emt 0:00:30]} Nf6 {[%emt 0:00:00]} 5. Nc3 {[%emt 0:00:00]} g6 {[%emt 0:00:00]} 6. Be3 {[%emt 0:00:00]} Bg7 {[%emt 0:00:30]} 7. f3 {[%emt 0:00:00]} O-O {[%emt 0:00:00]} 8. Qd2 {[%emt 0:00:00]} Nc6 {[%emt 0:00:00]} 9. g4 {[%emt 0:00:00]} Bd7 {[%emt 0:03:30]} 10. O-O-O {[%emt 0:00:00]} Ne5 {[%emt 0:01:30]} 11. Kb1 {[%emt 0:00:30]} Rc8 {[%emt 0:02:30]} 12. Bh6 {[%emt 0:03:30]} Nc4 {[%emt 0:09:30]} 13. Bxc4 {[%emt 0:02:30]} Rxc4 {[%emt 0:00:00]} 14. h4 {[%emt 0:00:30]} Nxe4 {[%emt 0:01:00]} 15. Nxe4 {[%emt 0:14:30]} Rxd4 {[%emt 0:02:30]} 16. Qxd4 {[%emt 0:10:30]} Bxd4 {[%emt 0:00:30]} 17. Rxd4 {[%emt 0:00:30]} Re8 {[%emt 0:03:30]} 18. h5 {[%emt 0:10:30]} f6 {[%emt 0:06:30]} 19. Bd2 {[%emt 0:08:30]} Bc6 {[%emt 0:07:30]} 20. Bc3 {[%emt 0:15:30]} Bxe4 {[%emt 0:05:30]} 21. fxe4 {[%emt 0:01:30]} g5 {[%emt 0:04:30]} 22. h6 {[%emt 0:14:20]} Qd7 {[%emt 0:02:30]} 23. Rg1 {[%emt 0:00:30]} Qe6 {[%emt 0:05:30]} 24. Rgd1 {[%emt 0:09:52]} Rc8 {[%emt 0:02:30]} 25. a3 {[%emt 0:04:59]} Kf7 {[%emt 0:09:30]} 26. e5 {[%emt 0:00:19]} fxe5 {[%emt 0:03:30]} 27. R4d3 {[%emt 0:00:46]} Qxg4 {[%emt 0:01:30]} 28. Rf1+ {[%emt 0:00:09]} Kg6 {[%emt 0:01:30]} 29. Bd2 {[%emt 0:01:25]} Qe2 {[%emt 0:00:30]} 30. Rg1 {[%emt 0:00:27]} e4 {[%emt 0:02:30]} 31. Rxg5+ {[%emt 0:01:10]} Kf6 {[%emt 0:00:30]} 32. Rdd5 {[%emt 0:00:03]} e3 {[%emt 0:01:30]} 33. Bb4 {[%emt 0:01:30]} Qf1+ {[%emt 0:00:30]} 34. Ka2 {[%emt 0:00:30]} Qc4+ {[%emt 0:00:30]} 35. Ka1 {[%emt 0:00:30]} Qxc2 {[%emt 0:00:30]} 36. Rh5 {[%emt 0:00:30]} Qe4 {[%emt 0:00:30]} 37. Rd1 {[%emt 0:00:30]} e2 {[%emt 0:00:30]} 38. Re1 {[%emt 0:00:30]} Rc2 {[%emt 0:00:30]} 39. Bc3+ {[%emt 0:00:30]} Ke6 {[%emt 0:00:30]} 40. Rh2 {[%emt 0:00:30]} d5 {[%emt 0:00:30]} 41. Bb4 {[%emt 0:00:30]} Qe5 {[%emt 0:00:30]} 0-1